Workbook

Sheet Mad Cow
B1: Mad Cow Disease
B3: A: | C3: has Mad Cow disease
B4: B: | C4: tests positive for Mad Cow disease
B6: 0.03 | C6: Pr(A) | E6: =showformula(B6) -> 0.03
B7: =1-B6 -> 0.97 | C7: Pr(not A) | E7: =showformula(B7) -> =1-B6
B9: 0.9 | C9: Pr(B|A) | E9: =showformula(B9) -> 0.9
B10: =1-B9 -> 0.1 | C10: Pr(not B|A) | E10: =showformula(B10) -> =1-B9
B12: =1-B13 -> 0.01 | C12: Pr(B|not A) | E12: =showformula(B12) -> =1-B13
B13: 0.99 | C13: Pr(not B|not A) | E13: =showformula(B13) -> 0.99
B15: =B6*B9 -> 0.027 | C15: Pr(A and B) | E15: =showformula(B15) -> =B6*B9
B16: =B9*B6+B12*B7 -> 0.0367 | C16: Pr(B) | E16: =showformula(B16) -> =B9*B6+B12*B7
B18: =B15/B16 -> 0.7356948229 | C18: Pr(A|B) | E18: =showformula(B18) -> =B15/B16

Sheet MC data tables
B1: Mad Cow Disease | G1: Data Tables
B3: A: | C3: has Mad Cow disease | G3: In order to see how cell B18 varies as
B4: B: | C4: tests positive for Mad Cow disease | G4: cell B6 is varied, we can build a "Data Table."
B6: 0.03 | C6: Pr(A) | E6: =showformula(B6) -> 0.03 | G6: a data table | I6: The formula in the top right
B7: =1-B6 -> 0.97 | C7: Pr(not A) | E7: =showformula(B7) -> =1-B6 | G7: <blank> | H7: formula | I7: will have its changing values
G8: the | I8: listed in the rows below
B9: 0.9 | C9: Pr(B|A) | E9: =showformula(B9) -> 0.9 | G9: values | I9: as each value in the first
B10: =1-B9 -> 0.1 | C10: Pr(not B|A) | E10: =showformula(B10) -> =1-B9 | G10: here | H10: highlight | I10: column which is placed into
G11: are | H11: the | I11: the "column input cell".
B12: =1-B13 -> 0.01 | C12: Pr(B|not A) | E12: =showformula(B12) -> =1-B13 | G12: placed | H12: entire
B13: 0.99 | C13: Pr(not B|not A) | E13: =showformula(B13) -> 0.99 | G13: into | H13: shaded | I13: For the table to the left
G14: the | H14: region to | I14: below, the formula "=B18"
B15: =B6*B9 -> 0.027 | C15: Pr(A and B) | E15: =showformula(B15) -> =B6*B9 | G15: "column | H15: start | I15: was placed into cell H24.
B16: =B9*B6+B12*B7 -> 0.0367 | C16: Pr(B) | E16: =showformula(B16) -> =B9*B6+B12*B7 | G16: input | I16: Values were put into G25:G30,
G17: cell" | I17: and G24:H30 was highlighted.
B18: =B15/B16 -> 0.7356948229 | C18: Pr(A|B) | E18: =showformula(B18) -> =B15/B16
I19: Then
I20: Data
I21: What-If Analysis
I22: Data Table
I23: was selected, and B6 was
H24: =B18 -> 0.7356948229 | I24: entered in the dialog box:
G25: 0.0003 | H25: 0.02629784747
G26: 0.01 | H26: 0.4761904762
G27: 0.02 | H27: 0.6474820144
G28: 0.03 | H28: 0.7356948229
G29: 0.04 | H29: 0.7894736842
G30: 0.05 | H30: 0.8256880734
G33: Column H in the table shows how H24 (really, B18)
G34: varies as the values in column G are plugged into B6.
G36: The table is "live". For example, change the 4.00%
G37: to 5.00%, and the last two right-column entries will
G38: become the same.

Sheet MC goal seek
B1: Mad Cow Disease | G1: Goal Seek (one-dimensional solving)
B3: A: | C3: has Mad Cow disease | G3: In order to find what value in cell B6 will generate a
B4: B: | C4: tests positive for Mad Cow disease | G4: value of 50.00% in cell B18, we can use Excel's
G5: built-in "goal-seeking" feature.
B6: 0.03 | C6: Pr(A) | E6: =showformula(B6) -> 0.03
B7: =1-B6 -> 0.97 | C7: Pr(not A) | E7: =showformula(B7) -> =1-B6 | G7: Select
G8: Data
B9: 0.9 | C9: Pr(B|A) | E9: =showformula(B9) -> 0.9 | G9: What-If Analysis
B10: =1-B9 -> 0.1 | C10: Pr(not B|A) | E10: =showformula(B10) -> =1-B9 | G10: Goal Seek …
G11: and fill in the dialog box:
B12: =1-B13 -> 0.01 | C12: Pr(B|not A) | E12: =showformula(B12) -> =1-B13
B13: 0.99 | C13: Pr(not B|not A) | E13: =showformula(B13) -> 0.99
B15: =B6*B9 -> 0.027 | C15: Pr(A and B) | E15: =showformula(B15) -> =B6*B9
B16: =B9*B6+B12*B7 -> 0.0367 | C16: Pr(B) | E16: =showformula(B16) -> =B9*B6+B12*B7
B18: =B15/B16 -> 0.7356948229 | C18: Pr(A|B) | E18: =showformula(B18) -> =B15/B16
G21: Hit "OK", and you'll find that a value of 1.10% in cell B6
G22: yields a value of 49.99% in cell B18.
G24: It's not perfect (49.99% ¹ 50%), but it's likely good enough.
G26: If there are multiple values for the "changing cell" which
G27: yield the same "to value" in the "set call," which solution you
B28: 3 | C28: x | G28: see will depend on what starting value was in the "changing
B29: =B28^2-3*B28+2 -> 2 | C29: (x-1)(x-2) | G29: cell."
B31: x = 1 and x = 2 are both solutions.
G39: If there's no solution to your problem, Goal Seek will tell you.
B40: 2 | C40: y
B41: =B40^2 -> 4 | C41: y2
B43: No number has a negative square.

Sheet Matt
B1: The Interview
B3: A: | C3: gets the job offer
B4: B: | C4: is called "Matt"
B6: 0.2 | C6: Pr(A) | E6: =showformula(B6) -> 0.2
B7: =1-B6 -> 0.8 | C7: Pr(not A) | E7: =showformula(B7) -> =1-B6
B9: 0.75 | C9: Pr(B|A) | E9: =showformula(B9) -> 0.75
B10: =1-B9 -> 0.25 | C10: Pr(not B|A) | E10: =showformula(B10) -> =1-B9
B12: 0.1 | C12: Pr(B|not A) | E12: =showformula(B12) -> 0.1
B13: =1-B12 -> 0.9 | C13: Pr(not B|not A) | E13: =showformula(B13) -> =1-B12
B15: =B6*B9 -> 0.15 | C15: Pr(A and B) | E15: =showformula(B15) -> =B6*B9
B16: =B7*B12 -> 0.08 | C16: Pr not A, and B) | E16: =showformula(B16) -> =B7*B12
B17: =B9*B6+B12*B7 -> 0.23 | C17: Pr(B) | E17: =showformula(B17) -> =B9*B6+B12*B7
B19: =B15/B17 -> 0.652173913 | C19: Pr(A|B) | E19: =showformula(B19) -> =B15/B17

Sheet Arrests
B1: Arrests
B3: =16%*27% -> 0.0432 | C3: Pr(arrest and conviction) | F3: =showformula(B3) -> =16%*27%
B4: =16%*73% -> 0.1168 | C4: Pr(arrest and no conviction) | F4: =showformula(B4) -> =16%*73%
B5: =16%*27%*19% -> 0.008208 | C5: Pr(prison term) | F5: =16%*27%*19%
B6: =84% -> 0.84 | C6: Pr(no arrest) | F6: =84%

Sheet CDOs
B1: Collateralized Debt Obligations
B3: A: | C3: industry is "strong"
B4: B: | C4: bankruptcy
B6: 0.6 | C6: Pr(A) | E6: =showformula(B6) -> 0.6
B7: =1-B6 -> 0.4 | C7: Pr(not A) | E7: =showformula(B7) -> =1-B6
B9: 0.1 | C9: Pr(B|A) | E9: =showformula(B9) -> 0.1
B10: =1-B9 -> 0.9 | C10: Pr(not B|A) | E10: =showformula(B10) -> =1-B9
B12: 0.3 | C12: Pr(B|not A) | E12: =showformula(B12) -> 0.3
B13: =1-B12 -> 0.7 | C13: Pr(not B|not A) | E13: =showformula(B13) -> =1-B12
B15: =B6*B9 -> 0.06 | C15: Pr(A and B) | E15: =showformula(B15) -> =B6*B9
B16: =B7*B12 -> 0.12 | C16: Pr not A, and B) | E16: =showformula(B16) -> =B7*B12
B17: =B9*B6+B12*B7 -> 0.18 | C17: Pr(B) | E17: =showformula(B17) -> =B9*B6+B12*B7
B18: =1-B17 -> 0.82 | C18: Pr(not B) | E18: =showformula(B18) -> =1-B17
B19: =B6*B10 -> 0.54 | C19: Pr(A and not B) | E19: =showformula(B20) -> 
B21: =B19/B18 -> 0.6585365854 | C21: Pr(A|not B) | E21: =showformula(B21) -> =B19/B18

Sheet Clouseau
B1: Inspector Clouseau
B3: A: | C3: is murder target
B4: B: | C4: piano falls nearby
B6: 0.4 | C6: Pr(A) | E6: =showformula(B6) -> 0.4
B7: =1-B6 -> 0.6 | C7: Pr(not A) | E7: =showformula(B7) -> =1-B6
B9: 0.95 | C9: Pr(B|A) | E9: =showformula(B9) -> 0.95
B10: =1-B9 -> 0.05 | C10: Pr(not B|A) | E10: =showformula(B10) -> =1-B9
B12: 0.02 | C12: Pr(B|not A) | E12: =showformula(B12) -> 0.02
B13: =1-B12 -> 0.98 | C13: Pr(not B|not A) | E13: =showformula(B13) -> =1-B12
B15: =B6*B9 -> 0.38 | C15: Pr(A and B) | E15: =showformula(B15) -> =B6*B9
B16: =B7*B12 -> 0.012 | C16: Pr not A, and B) | E16: =B7*B12
B17: =B9*B6+B12*B7 -> 0.392 | C17: Pr(B) | E17: =B9*B6+B12*B7
B18: =B15/B17 -> 0.9693877551 | C18: Pr(A|B) | E18: =B15/B17
B20: =1-B17 -> 0.608 | C20: Pr(not B) | E20: =1-B17
B21: =B6*B10 -> 0.02 | C21: Pr(A and not B) | E21: =B6*B10
B22: =B20-B21 -> 0.588 | C22: Pr(not A and not B) | E22: =B20-B21
B23: =B22/B20 -> 0.9671052632 | C23: Pr(not A|not B) | E23: =showformula(B23) -> =B22/B20
